fUSD/lending_fUSD_20251222
["ID","MTS","AMOUNT","RATE_DAILY","PERIOD"]
[399467141,1766383843956,-10143.3903106,0.00016999,2]
[399467142,1766383843967,-300.0,0.00016999,2]
[399467143,1766383843976,-308.17703459,0.00016999,2]
[399467144,1766383843985,-3629.2864415,0.00016999,2]
[399467145,1766383843996,-676.23992225,0.00016999,2]
[399467146,1766383844005,-300.0,0.00016999,2]
[399467147,1766383844015,-349.26999972,0.00016999,2]
[399467148,1766383844025,-500.0,0.00016999,2]
[399467149,1766383844035,-500.0,0.00016999,2]
[399467150,1766383844046,-500.0,0.00016999,2]
[399467151,1766383844056,-500.0,0.00016999,2]
[399467152,1766383844066,-500.0,0.00016999,2]
[399467153,1766383844075,-500.0,0.00016999,2]
[399467154,1766383844086,-500.0,0.00016999,2]
[399467155,1766383844098,-32311.9341641,0.00016999,2]
[399467156,1766383844107,-500.0,0.00016999,2]
[399467157,1766383844118,-500.0,0.00016999,2]
[399467158,1766383844128,-500.0,0.00016999,2]
[399467159,1766383844138,-500.0,0.00016999,2]
[399467160,1766383844148,-500.0,0.00016999,2]
[399467161,1766383844157,-518.50192951,0.00016999,2]
[399467162,1766383844166,-300.0,0.00016999,2]
[399467163,1766383844175,-666.0,0.00016999,2]
[399467164,1766383844184,-149657.5308759,0.00016999,2]
[399467165,1766383844194,-3698.0955418,0.00016999,2]
[399467166,1766383844203,-159.27020969,0.00016999,2]
[399467167,1766383844213,-300.0,0.00016999,2]
[399467168,1766383844223,-666.0,0.00016999,2]
[399467169,1766383844232,-11876.4640006,0.00016999,2]
[399467170,1766383844242,-766712.53362416,0.00017,2]
[399467171,1766383844275,-3716.21362329,0.00017,2]
[399467172,1766383844287,-44473.68,0.00017,2]
[399467173,1766383844298,-12382.0090856,0.00017,2]
[399467174,1766383844473,-977.65674628,0.000169,2]
[399467175,1766383844484,-5703323.80610551,0.00017,2]
[399467176,1766383844495,-1802962.6438933,0.00017,2]
[399467177,1766383844506,-346928.10892175,0.00017,2]
[399467178,1766383844520,-56651.47195505,0.00017,2]
[399467179,1766383844551,-607.11128601,0.00017,2]
[399467180,1766383844563,-1378.47091591,0.00017,2]
[399467181,1766383844574,-500.0,0.00017,2]
[399467182,1766383844585,-2859.88288406,0.00017,2]
[399467183,1766383844597,-841.0,0.00017,2]
[399467184,1766383844607,-97431.7542494,0.00017,2]
[399467185,1766383845249,-883.59956996,0.00017,2]
[399467186,1766383845259,-1052.29421122,0.00017,2]
[399467187,1766383845325,-628.28861067,0.00017,2]
[399467188,1766383845371,-2469.02239873,0.00017,2]
[399467189,1766383845381,-20910.72561933,0.00017,2]
[399467190,1766383846321,-759.48108643,0.00016999,2]
[399467191,1766383846333,-676.28058267,0.00016999,2]
[399467192,1766383846342,-358.022329,0.00017,2]
[399467194,1766384161448,1054.09474225,0.00013711,5]
[399467195,1766384182328,500.0,0.00021726,30]
[399467196,1766384182422,150.0,0.00021726,30]
[399467197,1766384182476,500.0,0.00021753,30]
[399467198,1766384182576,155.67266421,0.00021753,30]
[399467199,1766384182628,500.0,0.00021781,30]
[399467200,1766384184406,500.0,0.00021726,30]
[399467201,1766384184492,500.0,0.00021753,30]
[399467202,1766384184658,500.0,0.00021781,30]
[399467203,1766384184837,500.0,0.00021808,30]
[399467204,1766384184987,500.0,0.00021836,30]
[399467205,1766384185161,500.0,0.00021863,30]
[399467206,1766384185320,510.19749043,0.0002189,30]
[399467207,1766384373083,343.5,0.00022,30]
[399467208,1766384395397,150.0,9.5e-05,2]
[399467217,1766385032367,-230.0,9.7e-05,2]
[399467218,1766385032376,-264.35832401,0.0001067,2]
[399467219,1766385032386,-300.0,0.00011161,2]
[399467220,1766385032395,-37.98061086,0.00011172,2]
[399467221,1766385032406,-157.01938914,0.00011172,2]
[399467222,1766385032416,-157.56365924,0.00011193,2]
[399467223,1766385032427,-363.99384731,0.00011193,2]
[399467224,1766385032437,-319.0,0.000115,2]
[399467225,1766385032446,-513.86990401,0.0001224,2]
[399467226,1766385032458,-5175.60009599,0.0001224,2]
[399467227,1766385032467,-300.0,0.00012301,2]
[399467228,1766385032476,-1200.0,0.00012301,2]
[399467229,1766385032486,-9080.63,0.00012302,2]
[399467230,1766385032495,-425.2,0.00012367,2]
[399467231,1766385032504,-441.38,0.000125,2]
[399467232,1766385032514,-150.0,0.00012512,2]
[399467233,1766385032524,-500.0,0.00012512,2]
[399467234,1766385032533,-180.53702156,0.00012512,2]
[399467235,1766385032543,-482.92473233,0.00012512,2]
[399467236,1766385032552,-40172.51,0.00012513,2]
[399467237,1766385032561,-200.0,0.00012545,2]
[399467238,1766385032571,-1838.51,0.00012675,2]
[399467239,1766385032580,-500.0,0.00012712,2]
[399467240,1766385032590,-500.0,0.00012712,2]
[399467241,1766385032599,-250.0,0.00012817,2]
[399467242,1766385032608,-4266.2,0.00012824,2]
[399467243,1766385032618,-16684.590624,0.0001299,2]
[399467244,1766385032629,-13801.97168784,0.0001299,2]
[399467245,1766385032654,-871.0,0.0001299,2]
[399467246,1766385032669,-511.86844531,0.0001299,2]
[399467247,1766385032680,-1212.28801392,0.0001299,2]
[399467248,1766385032692,-1961.78531538,0.0001299,2]
[399467249,1766385038357,-512.5523942,0.00012989,2]
[399467250,1766385038366,-174.4192465,0.00012989,2]
[399467251,1766385038375,-2129.89139824,0.0001299,2]
[399467252,1766385038387,-13965.44379314,0.0001299,2]
[399467253,1766385038473,-10840.43554234,0.0001299,2]
[399467254,1766385038486,-4412.95179133,0.00013,2]
[399467255,1766385038495,-1454.00948523,0.00013013,2]
[399467256,1766385038504,-5328.93897617,0.0001305,2]
[399467257,1766385038513,-425.2,0.00013055,2]
[399467258,1766385038524,-9999.99,0.00013117,2]
[399467259,1766385038534,-150.99,0.00013117,2]
[399467260,1766385038543,-299.99,0.00013117,2]
[399467261,1766385038552,-219.13,0.00013315,2]
[399467262,1766385038561,-166.66,0.00013332,2]
[399467263,1766385038571,-175.4,0.00013372,2]
[399467264,1766385038581,-420.0,0.00013499,2]
[399467265,1766385038590,-1000.0,0.000135,2]
[399467267,1766385038600,-494.16153653,0.00013512,2]
[399467269,1766385038609,-1680.0,0.00013531,2]
[399467271,1766385038618,-326707.1204264,0.00013547,2]
[399467273,1766385038627,-255.0,0.00013601,2]
[399467275,1766385038636,-34474.0902,0.00013612,2]
[399467276,1766385038645,-1210.0115247,0.00013618,2]
[399467278,1766385038654,-668.39580012,0.00013618,2]
[399467280,1766385038663,-151.01,0.00013643,2]
[399467282,1766385038672,-500.0,0.00013643,2]
[399467283,1766385038683,-172.65369625,0.00013643,2]
[399467284,1766385038692,-500.0,0.00013643,2]
[399467285,1766385038702,-500.0,0.00013643,2]
[399467286,1766385038712,-500.0,0.00013643,2]
[399467287,1766385038721,-500.0,0.00013643,2]
[399467288,1766385038731,-550.36391425,0.00013643,2]
[399467289,1766385038740,-535.43855747,0.00013643,2]
[399467290,1766385038749,-537.36765375,0.00013643,2]
[399467291,1766385038759,-500.0,0.00013643,2]
[399467292,1766385038769,-500.0,0.00013643,2]
[399467293,1766385038778,-500.0,0.00013643,2]
[399467294,1766385038787,-500.0,0.00013643,2]
[399467295,1766385038796,-224.11516546,0.00013643,2]
[399467296,1766385038805,-500.0,0.00013643,2]
[399467297,1766385038814,-500.0,0.00013643,2]
[399467298,1766385038824,-500.0,0.00013643,2]
[399467299,1766385038833,-500.0,0.00013643,2]
[399467300,1766385038842,-500.0,0.00013643,2]
[399467301,1766385038851,-500.0,0.00013643,2]
[399467302,1766385038864,-500.0,0.00013643,2]
[399467303,1766385038880,-500.0,0.00013643,2]
[399467304,1766385039216,-500.0,0.00013643,2]
[399467305,1766385039227,-453.73344194,0.00013643,2]
[399467306,1766385039236,-235.68882783,0.00013643,2]
[399467307,1766385039246,-500.0,0.00013643,2]
[399467308,1766385039255,-222.91830755,0.00013643,2]
[399467309,1766385039265,-500.0,0.00013643,2]
[399467310,1766385039275,-500.0,0.00013643,2]
[399467311,1766385039284,-500.0,0.00013643,2]
[399467312,1766385039292,-500.0,0.00013643,2]
[399467313,1766385039302,-500.0,0.00013643,2]
[399467314,1766385039311,-500.0,0.00013643,2]
[399467315,1766385039320,-484.24574485,0.00013643,2]
[399467316,1766385039329,-500.0,0.00013643,2]
[399467317,1766385039338,-2039.58,0.00013643,2]
[399467318,1766385039347,-182.249,0.00013681,2]
[399467319,1766385039355,-500.0,0.00013698,2]
[399467320,1766385039364,-500.0,0.00013698,2]
[399467321,1766385039373,-500.0,0.00013698,2]
[399467322,1766385039382,-500.0,0.00013698,2]
[399467323,1766385039392,-500.0,0.00013698,2]
[399467324,1766385039401,-500.0,0.00013698,2]
[399467325,1766385039410,-500.0,0.00013698,2]
[399467326,1766385039420,-500.0,0.00013698,2]
[399467327,1766385039429,-500.0,0.00013698,2]
[399467328,1766385039439,-500.0,0.00013698,2]
[399467329,1766385039448,-344.92521507,0.00013698,2]
[399467330,1766385039457,-500.0,0.00013698,2]
[399467331,1766385039467,-500.0,0.00013698,2]
[399467332,1766385039476,-500.0,0.00013698,2]
[399467333,1766385039485,-500.0,0.00013698,2]
[399467334,1766385039494,-500.0,0.00013698,2]
[399467335,1766385039503,-500.0,0.00013698,2]
[399467336,1766385039512,-501.05282462,0.00013698,2]
[399467337,1766385039521,-500.0,0.00013698,2]
[399467338,1766385039530,-500.0,0.00013698,2]
[399467339,1766385039539,-500.0,0.00013698,2]
[399467340,1766385039548,-500.0,0.00013698,2]
[399467341,1766385039557,-500.0,0.00013698,2]
[399467342,1766385039566,-500.0,0.00013698,2]
[399467343,1766385039575,-500.0,0.00013698,2]
[399467344,1766385039583,-511.45544987,0.00013698,2]
[399467345,1766385039592,-500.0,0.00013698,2]
[399467346,1766385039601,-500.0,0.00013698,2]
[399467347,1766385039610,-507.17995557,0.00013698,2]
[399467348,1766385039618,-500.0,0.00013698,2]
[399467349,1766385039627,-500.0,0.00013698,2]
[399467350,1766385039636,-500.0,0.00013698,2]
[399467351,1766385039646,-500.0,0.00013698,2]
[399467352,1766385039654,-373.89365293,0.00013698,2]
[399467353,1766385039663,-500.0,0.00013698,2]
[399467354,1766385039672,-500.0,0.00013698,2]
[399467355,1766385039681,-166.66,0.00013699,2]
[399467356,1766385039690,-15708.21,0.00013699,2]
[399467357,1766385039699,-612.93,0.00013699,2]
[399467358,1766385039708,-1000.0,0.00013699,2]
[399467359,1766385039717,-500.0,0.00013699,2]
[399467360,1766385039726,-500.0,0.00013699,2]
[399467361,1766385039735,-500.0,0.00013699,2]
[399467362,1766385039744,-500.0,0.00013699,2]
[399467363,1766385039753,-500.0,0.00013699,2]
[399467364,1766385039762,-500.0,0.00013699,2]
[399467365,1766385039772,-500.0,0.00013699,2]
[399467366,1766385039781,-500.0,0.00013699,2]
[399467367,1766385039791,-500.0,0.00013699,2]
[399467368,1766385039800,-500.0,0.00013699,2]
[399467369,1766385039809,-500.0,0.00013699,2]
[399467370,1766385039818,-500.0,0.00013699,2]
[399467371,1766385039827,-500.0,0.00013699,2]
[399467372,1766385039836,-500.0,0.00013699,2]
[399467373,1766385039844,-500.0,0.00013699,2]
[399467374,1766385039853,-590.90599916,0.00013699,2]
[399467375,1766385039863,-500.0,0.00013699,2]
[399467376,1766385039875,-500.0,0.00013699,2]
[399467377,1766385039884,-500.0,0.00013699,2]
[399467378,1766385039893,-500.0,0.00013699,2]
[399467379,1766385039902,-500.0,0.00013699,2]
[399467380,1766385039912,-620.44,0.000137,2]
[399467381,1766385039921,-620.44,0.000137,2]
[399467382,1766385039930,-620.44,0.000137,2]
[399467383,1766385039941,-620.44,0.000137,2]
[399467384,1766385039950,-620.44,0.00013702,2]
[399467385,1766385039959,-1490.09817043,0.00013702,2]
[399467386,1766385039969,-500.0,0.00013711,2]
[399467387,1766385039979,-500.0,0.00013711,2]
[399467388,1766385039988,-500.0,0.00013711,2]
[399467389,1766385039998,-500.0,0.00013711,2]
[399467390,1766385040007,-500.0,0.00013711,2]
[399467391,1766385040016,-500.0,0.00013711,2]
[399467392,1766385040026,-500.0,0.00013711,2]
[399467393,1766385040035,-500.0,0.00013711,2]
[399467394,1766385040044,-500.0,0.00013711,2]
[399467395,1766385040053,-500.0,0.00013711,2]
[399467396,1766385040063,-1000000.0,0.00013712,2]
[399467397,1766385040073,-151.0,0.00013715,2]
[399467398,1766385040082,-13743.3,0.00013718,2]
[399467399,1766385040092,-425.2,0.00013742,2]
[399467400,1766385040102,-166.66,0.00013772,2]
[399467401,1766385040111,-500.0,0.00013812,2]
[399467402,1766385040120,-500.0,0.00013812,2]
[399467403,1766385040130,-500.0,0.00013812,2]
[399467404,1766385040140,-166.66,0.00013836,2]
[399467405,1766385040150,-24947.81944805,0.00013888,2]
[399467406,1766385040159,-2039.58,0.00013917,2]
[399467407,1766385040168,-166.66,0.00013973,2]
[399467408,1766385040178,-494.16153651,0.00013996,2]
[399467409,1766385040187,-82108.11055836,0.00014,2]
[399467410,1766385040197,-1500.0,0.00014,2]
[399467411,1766385040207,-1050.83828415,0.00014,2]
[399467412,1766385040217,-166.66,0.0001411,2]
[399467413,1766385040226,-5124.12479165,0.0001414,2]
[399467414,1766385040236,-1210.01152467,0.00014165,2]
[399467415,1766385040247,-1000.0,0.00014191,2]
[399467416,1766385040256,-1000.0,0.00014191,2]
[399467417,1766385040266,-1000.0,0.00014191,2]
[399467418,1766385040276,-1000.0,0.00014191,2]
[399467419,1766385040285,-1000.0,0.00014191,2]
[399467420,1766385040294,-1000.0,0.00014191,2]
[399467421,1766385040303,-1000.0,0.00014191,2]
[399467423,1766385040312,-1000.0,0.00014191,2]
[399467424,1766385040321,-1000.0,0.00014191,2]
[399467425,1766385040330,-1000.0,0.00014191,2]
[399467426,1766385040340,-1000.0,0.00014191,2]
[399467427,1766385040349,-1000.0,0.00014191,2]
[399467428,1766385040358,-1000.0,0.00014191,2]
[399467429,1766385040368,-937.07935653,0.00014191,2]
[399467430,1766385040377,-1000.0,0.00014191,2]
[399467431,1766385040387,-1000.0,0.00014191,2]
[399467432,1766385040396,-804.17773207,0.00014191,2]
[399467433,1766385040405,-1000.0,0.00014191,2]
[399467435,1766385040414,-1000.0,0.00014191,2]
[399467437,1766385040423,-1000.0,0.00014191,2]
[399467439,1766385040432,-1000.81193052,0.00014191,2]
[399467441,1766385040441,-1000.0,0.00014191,2]
[399467442,1766385040451,-1000.0,0.00014191,2]
[399467444,1766385040460,-1000.0,0.00014191,2]
[399467445,1766385040469,-1000.0,0.00014191,2]
[399467447,1766385040480,-1000.0,0.00014191,2]
[399467448,1766385040489,-2039.58,0.00014191,2]
[399467449,1766385040500,-166.66,0.00014212,2]
[399467450,1766385040509,-166.66,0.00014247,2]
[399467451,1766385040519,-166.66,0.00014384,2]
[399467452,1766385040529,-10279.41003921,0.0001439,2]
[399467453,1766385040538,-425.2,0.00014429,2]
[399467454,1766385040548,-2039.58,0.00014465,2]
[399467455,1766385040557,-494.16153651,0.0001448,2]
[399467456,1766385040568,-16517.22,0.00014506,2]
[399467457,1766385040578,-3301.98750385,0.0001451,2]
[399467458,1766385040587,-352.88004127,0.00014639,2]
[399467459,1766385040597,-166.66,0.00014652,2]
[399467460,1766385040607,-1210.01152467,0.00014712,2]
[399467461,1766385040617,-1500.0,0.00014739,2]
[399467462,1766385040628,-1500.0,0.00014739,2]
[399467463,1766385040637,-1500.0,0.00014739,2]
[399467464,1766385040646,-501.38196086,0.00014739,2]
[399467465,1766385040656,-1500.0,0.00014739,2]
[399467466,1766385040667,-1500.0,0.00014739,2]
[399467467,1766385040676,-659.366475,0.00014739,2]
[399467468,1766385040686,-597.93973627,0.00014739,2]
[399467469,1766385040695,-1500.0,0.00014739,2]
[399467470,1766385040706,-1500.0,0.00014739,2]
[399467471,1766385040716,-1500.0,0.00014739,2]
[399467472,1766385040726,-480.93651792,0.00014739,2]
[399467473,1766385040735,-1500.0,0.00014739,2]
[399467474,1766385040744,-1500.0,0.00014739,2]
[399467475,1766385040753,-1500.0,0.00014739,2]
[399467476,1766385040762,-1500.0,0.00014739,2]
[399467477,1766385040772,-1500.0,0.00014739,2]
[399467478,1766385040782,-1500.0,0.00014739,2]
[399467479,1766385040791,-1500.0,0.00014739,2]
[399467480,1766385040800,-1504.58016272,0.00014739,2]
[399467481,1766385040812,-1500.0,0.00014739,2]
[399467482,1766385040822,-1500.0,0.00014739,2]
[399467484,1766385040832,-644.6648404,0.00014739,2]
[399467486,1766385040841,-2039.58,0.00014739,2]
[399467488,1766385040851,-433.0,0.00014789,2]
[399467490,1766385040861,-587.0,0.00014815,2]
[399467492,1766385040874,-2351.0,0.00014884,2]
[399467493,1766385040883,-226.5471914,0.000149,2]
[399467494,1766385040893,-5014.92,0.00014999,2]
[399467495,1766385040904,-2041.02448075,0.00015,2]
[399467496,1766385040915,-1344.90035388,0.00015,14]
[399467497,1766385040925,-7945.49825452,0.00015,2]
[399467498,1766385040934,-21356.21903813,0.00015,2]
[399467499,1766385040944,-1154.92232765,0.00015,2]
[399467500,1766385040953,-25864.54250308,0.00015,2]
[399467501,1766385040963,-2039.58,0.00015013,2]
[399467502,1766385040972,-166.66,0.00015092,2]
[399467503,1766385040982,-425.2,0.00015116,2]
[399467504,1766385040991,-1210.01152467,0.00015259,2]
[399467505,1766385041002,-152.24771279,0.00015287,2]
[399467506,1766385041011,-1502.21103807,0.00015287,2]
[399467507,1766385041020,-2000.0,0.00015287,2]
[399467508,1766385041030,-1437.14852253,0.00015287,2]
[399467509,1766385041039,-659.1358272,0.00015287,2]
[399467510,1766385041049,-2000.0,0.00015287,2]
[399467511,1766385041058,-2000.0,0.00015287,2]
[399467512,1766385041067,-2000.0,0.00015287,2]
[399467513,1766385041076,-1572.96293358,0.00015287,2]
[399467514,1766385041086,-1390.7850892,0.00015287,2]
[399467515,1766385041096,-1005.45508162,0.00015287,2]
[399467516,1766385041105,-2000.0,0.00015287,2]
[399467517,1766385041115,-667.2591655,0.00015287,2]
[399467518,1766385041125,-1500.0,0.00015287,2]
[399467519,1766385041134,-2000.0,0.00015287,2]
[399467520,1766385041145,-630.28190868,0.00015287,2]
[399467521,1766385041154,-2000.0,0.00015287,2]
[399467522,1766385041164,-2039.58,0.00015287,2]
[399467523,1766385041173,-1517.64,0.000153,2]
[399467524,1766385041183,-216.83067328,0.00015352,4]
[399467525,1766385041192,-151.0,0.00015365,2]
[399467526,1766385041202,-151.0,0.00015365,2]
[399467527,1766385041212,-151.0,0.0001537,2]
[399467528,1766385041221,-151.0,0.00015394,2]
[399467529,1766385041231,-505.93150973,0.000154,2]
[399467530,1766385041240,-500.0,0.00015434,2]
[399467531,1766385041249,-500.0,0.00015493,2]
[399467532,1766385041260,-166.66,0.00015532,2]
[399467533,1766385041271,-16703.53114941,0.00015556,2]
[399467534,1766385041281,-2039.58,0.00015561,2]
[399467535,1766385041291,-151.0,0.00015595,2]
[399467536,1766385041301,-156.587,0.00015595,2]
[399467537,1766385041310,-162.380719,0.00015595,2]
[399467538,1766385041319,-153.6660154,0.00015595,2]
[399467539,1766385041328,-151.0,0.00015595,2]
[399467540,1766385041337,-500.0,0.00015595,2]
[399467541,1766385041347,-352.57653345,0.00015595,2]
[399467542,1766385041357,-200.0,0.00015595,2]
[399467543,1766385041366,-207.4,0.00015595,2]
[399467544,1766385041375,-215.0738,0.00015595,2]
[399467545,1766385041384,-223.0315306,0.00015595,2]
[399467546,1766385041393,-231.28369723,0.00015595,2]
[399467547,1766385041402,-239.84119403,0.00015595,2]
[399467548,1766385041412,-248.71531821,0.00015595,2]
[399467549,1766385041421,-257.91778498,0.00015595,2]
[399467550,1766385041431,-267.46074303,0.00015595,2]
[399467551,1766385041440,-352.88004125,0.0001578,2]
[399467552,1766385041450,-425.2,0.00015803,2]
[399467553,1766385041459,-1210.01152467,0.00015806,2]
[399467554,1766385041468,-2229.34280704,0.00015807,2]
[399467555,1766385041479,-2500.0,0.00015835,2]
[399467556,1766385041489,-2649.41311849,0.00015835,2]
[399467557,1766385041498,-2006.61121475,0.00015835,2]
[399467558,1766385041507,-2007.00799583,0.00015835,2]
[399467559,1766385041517,-2590.93800386,0.00015835,2]
[399467560,1766385041527,-2500.0,0.00015835,2]
[399467561,1766385041537,-1300.59467454,0.00015835,2]
[399467562,1766385041545,-2039.58,0.00015835,2]
[399467563,1766385041556,-1913.6882729,0.0001595,2]
[399467564,1766385041565,-255.64335402,0.0001595,2]
[399467565,1766385041574,-1490.09817043,0.0001599,2]
[399467566,1766385041583,-151.0,0.00015997,2]
[399467567,1766385041592,-23722.5581067,0.00016,2]
[399467568,1766385041602,-381.44303006,0.00016,2]
[399467569,1766385041620,-265919.8816659,0.00016,4]
[399467570,1766385041639,-25305.78949341,0.00016,4]
[399467571,1766385041800,-8894.3368452,0.00016,4]
[399467572,1766385041812,-325.929999,0.00016,4]
[399467573,1766385041830,-1492813.40014796,0.00016,4]
[399467574,1766385041840,-736.0,0.00016066,2]
[399467575,1766385041849,-2039.58,0.00016108,2]
[399467576,1766385041858,-5000.00137707,0.000162,5]
[399467577,1766385041871,-218.0,0.00016258,2]
[399467578,1766385041880,-742.0,0.00016314,2]
[399467579,1766385041889,-500.0,0.00016337,2]
[399467580,1766385041898,-500.0,0.00016337,2]
[399467581,1766385041909,-1000.0,0.00016338,2]
[399467582,1766385041918,-1210.01152467,0.00016353,2]
[399467583,1766385041927,-3292.0,0.00016372,2]
[399467584,1766385041936,-742.0,0.0001638,2]
[399467585,1766385041947,-2039.58,0.00016382,2]
[399467586,1766385041957,-3000.0,0.00016383,2]
[399467587,1766385041966,-2500.0,0.00016383,2]
[399467588,1766385041975,-742.0,0.0001639,2]
[399467589,1766385041988,-1000.0,0.000164,2]
[399467590,1766385041998,-1913.68827289,0.00016425,2]
[399467591,1766385042008,-255.64335402,0.00016425,2]
[399467592,1766385042018,-500.0,0.00016437,2]
[399467593,1766385042027,-500.0,0.00016437,2]
[399467594,1766385042038,-500.0,0.00016437,2]
[399467595,1766385042048,-500.0,0.00016437,2]
[399467596,1766385042058,-500.0,0.00016437,2]
[399467597,1766385042068,-500.0,0.00016437,2]
[399467598,1766385042077,-500.0,0.00016437,2]
[399467599,1766385042087,-500.0,0.00016437,2]
[399467600,1766385042097,-500.0,0.00016437,2]
[399467601,1766385042107,-500.0,0.00016437,2]
[399467602,1766385042117,-500.0,0.00016437,2]
[399467603,1766385042126,-500.0,0.00016437,2]
[399467604,1766385042136,-500.0,0.00016437,2]
[399467605,1766385042146,-500.0,0.00016437,2]
[399467606,1766385042155,-506.35570593,0.00016437,2]
[399467607,1766385042166,-500.0,0.00016437,2]
[399467608,1766385042180,-500.0,0.00016437,2]
[399467609,1766385042190,-1999.68848535,0.00016438,2]
[399467610,1766385042202,-1999.68848535,0.00016438,2]
[399467611,1766385042211,-1999.68848535,0.00016438,2]
[399467612,1766385042221,-1999.68848535,0.00016438,2]
[399467613,1766385042231,-1999.68848535,0.00016438,2]
[399467614,1766385042241,-1999.68848535,0.00016438,2]
[399467615,1766385042251,-1999.68848535,0.00016438,2]
[399467616,1766385042261,-1999.68848535,0.00016438,2]
[399467617,1766385042271,-1999.68848535,0.00016438,2]
[399467618,1766385042280,-1999.68848535,0.00016438,2]
[399467619,1766385042292,-1999.68848535,0.00016438,2]
[399467620,1766385042302,-1999.68848535,0.00016438,2]
[399467621,1766385042312,-1999.68848535,0.00016438,2]
[399467622,1766385042322,-1999.68848535,0.00016438,2]
[399467623,1766385042331,-1999.68848535,0.00016438,2]
[399467624,1766385042341,-1999.68848535,0.00016438,2]
[399467625,1766385042351,-1999.68848535,0.00016438,2]
[399467626,1766385042360,-1999.68848535,0.00016438,2]
[399467627,1766385042370,-1999.68848535,0.00016438,2]
[399467628,1766385042383,-1999.68848535,0.00016438,2]
[399467629,1766385042392,-1999.68848535,0.00016438,2]
[399467630,1766385042403,-1999.68848535,0.00016438,2]
[399467631,1766385042413,-1999.68848535,0.00016438,2]
[399467632,1766385042423,-1999.68848535,0.00016438,2]
[399467633,1766385042435,-1999.68848535,0.00016438,2]
[399467634,1766385042447,-1999.68848535,0.00016438,2]
[399467635,1766385042457,-1999.68848535,0.00016438,2]
[399467636,1766385042467,-1999.68848535,0.00016438,2]
[399467637,1766385042477,-1999.68848535,0.00016438,2]
[399467638,1766385042486,-1999.68848535,0.00016438,2]
[399467639,1766385042497,-1999.68848535,0.00016438,2]
[399467640,1766385042507,-1999.68848535,0.00016438,2]
[399467641,1766385042516,-1999.68848535,0.00016438,2]
[399467642,1766385042526,-1999.68848535,0.00016438,2]
[399467643,1766385042535,-1999.68848535,0.00016438,2]
[399467644,1766385042545,-1999.68848535,0.00016438,2]
[399467645,1766385042555,-1999.68848535,0.00016438,2]
[399467646,1766385042567,-1999.68848535,0.00016438,2]
[399467647,1766385042578,-1999.68848535,0.00016438,2]
[399467648,1766385042589,-1999.68848535,0.00016438,2]
[399467649,1766385042600,-1999.68848535,0.00016438,2]
[399467650,1766385042610,-1999.68848535,0.00016438,2]
[399467651,1766385042620,-1999.68848535,0.00016438,2]
[399467652,1766385042630,-1999.68848535,0.00016438,2]
[399467653,1766385042639,-1999.68848535,0.00016438,2]
[399467654,1766385042649,-1999.68848535,0.00016438,2]
[399467655,1766385042660,-1999.68848535,0.00016438,2]
[399467656,1766385042670,-1999.68848535,0.00016438,2]
[399467657,1766385042680,-1979.6916005,0.00016438,2]
[399467658,1766385042690,-1979.6916005,0.00016438,2]
[399467659,1766385042701,-1979.6916005,0.00016438,2]
[399467660,1766385042710,-1979.6916005,0.00016438,2]
[399467661,1766385042719,-1979.6916005,0.00016438,2]
[399467662,1766385042730,-1979.6916005,0.00016438,2]
[399467663,1766385042739,-1979.6916005,0.00016438,2]
[399467664,1766385042749,-1979.6916005,0.00016438,2]
[399467665,1766385042761,-1979.6916005,0.00016438,2]
[399467666,1766385042770,-1979.6916005,0.00016438,2]
[399467667,1766385042780,-1979.6916005,0.00016438,2]
[399467668,1766385042789,-1979.6916005,0.00016438,2]
[399467669,1766385042799,-1979.6916005,0.00016438,2]